bitfinex-derivatives/quotes_ETHF0:USTF0_20241230
["timestamp","ask_amount","ask_price","bid_price","bid_amount"]
[1735540857792,0.9039,3429.0,3428.3,3.50011]
[1735540857986,0.29227,3428.8,3428.3,3.50011]
[1735540858183,3.2078,3428.9,3428.3,3.2078]
[1735540858386,0.29227,3428.8,3428.3,3.2078]
[1735540858591,0.29227,3428.8,3428.3,3.50011]
[1735540858791,3.50006,3428.9,3428.4,0.2923]
[1735540859291,0.43852745,3428.8,3428.4,0.2923]
[1735540859689,0.43852745,3428.8,3428.5,0.29229]
[1735540860089,0.43852745,3428.8,3428.4,0.2923]
[1735540861285,0.43852745,3428.8,3428.3,3.2078]
[1735540861482,0.43852745,3428.8,3428.5,0.29229]
[1735540861689,0.43852745,3428.8,3428.3,3.2078]
[1735540861992,0.43852745,3428.8,3428.5,0.29229]
[1735540862988,0.43852745,3428.8,3428.4,0.2923]
[1735540863190,0.43852745,3428.8,3428.5,0.29229]
[1735540865090,5.01673549,3428.8,3428.5,0.29229]
[1735540865901,5.01673549,3428.8,3428.1,3.2078]
[1735540866096,5.01673549,3428.8,3428.5,0.29229]
[1735540867191,5.01673549,3428.8,3428.7,0.29228]
[1735540868998,5.01673549,3429.2,3429.0,0.29225]
[1735540869795,5.01673549,3429.2,3428.9,0.29225]
[1735540870002,4.57820804,3429.1,3428.9,0.29225]
[1735540870401,4.57820804,3429.1,3428.6,3.63987422]
[1735540870604,4.57820804,3429.1,3428.9,0.29225]
[1735540876107,4.57820804,3429.1,3428.7,3.50008]
[1735540876305,4.57820804,3429.1,3428.7,3.2078]
[1735540876703,4.87045804,3429.1,3428.7,3.2078]
[1735540876903,5.01673549,3429.1,3428.7,3.2078]
[1735540877101,0.29227,3428.8,3428.3,3.92501]
[1735540877310,8.22453549,3429.1,3428.3,3.2078]
[1735540877311,1.64558,3428.7,3428.3,3.2078]
[1735540878098,1.3533,3428.7,3428.3,3.2078]
[1735540878303,1.3533,3428.7,3428.0,1.47434]
[1735540878304,0.29229,3428.6,3428.0,1.47434]
[1735540878507,5.30902549,3428.6,3428.0,1.47434]
[1735540878905,5.30902549,3428.6,3428.1,0.29233]
[1735540879305,5.01673549,3428.6,3428.1,0.29233]
[1735540879506,5.01673549,3428.6,3427.4,3.2078]
[1735540879507,5.53477422,3428.2,3427.4,3.2078]
[1735540879701,0.8862,3428.1,3427.4,3.2078]
[1735540880011,0.29235,3427.9,3427.4,3.2078]
[1735540880307,0.29235,3427.9,3427.4,3.50019]
[1735540881109,0.29236,3427.8,3427.4,3.2078]
[1735540881508,0.29236,3427.8,3427.4,3.50019]
[1735540881509,0.43852745,3427.8,3427.4,3.50019]
[1735540882813,0.73088745,3427.8,3427.4,3.2078]
[1735540883311,0.43852745,3427.8,3427.4,3.2078]
[1735540883511,0.73088745,3427.8,3427.4,3.2078]
[1735540883815,0.43852745,3427.7,3427.4,3.2078]
[1735540884803,0.29238,3427.6,3427.4,3.2078]
[1735540885009,0.29238,3427.6,3426.8,0.29244]
[1735540885010,0.2924,3427.3,3426.8,0.29244]
[1735540885307,0.29242,3427.1,3426.6,3.50025]
[1735540885503,0.29242,3427.0,3426.5,0.29246]
[1735540885702,0.29243,3426.9,3426.5,3.2078]
[1735540886004,0.4367,3426.9,3426.5,3.50026]
[1735540886202,0.4367,3426.9,3426.5,3.2078]
[1735540886813,0.72914,3426.9,3426.5,3.2078]
[1735540887007,0.29245,3426.8,3426.1,5.97937422]
[1735540887206,3.6445,3426.9,3426.1,5.53477422]
[1735540887408,3.6445,3426.9,3426.1,3.2078]
[1735540887605,3.2078,3426.4,3425.6,3.6524]
[1735540887813,1.20568,3426.3,3425.7,0.29253]
[1735540888211,0.4345,3426.2,3425.7,0.29253]
[1735540889216,0.4345,3426.2,3425.6,3.2078]
[1735540889517,0.43852745,3426.8,3425.8,2.32697422]
[1735540889518,4.57820804,3426.6,3425.8,2.32697422]
[1735540889909,4.57820804,3426.6,3426.2,0.29249]
[1735540890516,0.4365,3426.7,3426.2,0.29249]
[1735540890916,0.4365,3426.7,3425.9,0.4422]
[1735540891220,0.29246,3426.6,3426.0,0.2925]
[1735540891516,0.72895,3426.7,3426.1,0.2925]
[1735540892105,0.29246,3426.6,3426.1,0.2925]
[1735540892417,0.72896,3426.7,3425.9,0.29252]
[1735540892614,0.4365,3426.7,3426.0,3.2078]
[1735540892808,0.29246,3426.6,3426.1,0.29249]
[1735540893517,0.4365,3426.7,3426.1,0.29249]
[1735540893717,0.29247,3426.5,3426.0,3.5003]
[1735540893913,0.29247,3426.5,3426.1,0.2925]
[1735540898820,3.2078,3426.6,3426.1,0.2925]
[1735540899022,0.29247,3426.5,3426.1,0.2925]
[1735540899423,0.2925,3426.2,3425.8,3.50032]
[1735540899723,0.4384,3426.1,3425.9,0.29251]
[1735540900022,0.4562,3426.0,3425.9,0.29251]
[1735540900219,0.4562,3426.0,3425.8,3.2078]
[1735540900423,0.4562,3426.0,3425.9,0.29252]
[1735540900828,0.4562,3426.0,3425.5,0.4422]
[1735540901126,0.4562,3426.0,3425.5,3.65]
[1735540901318,0.4562,3426.0,3425.7,0.29253]
[1735540902620,0.4562,3426.0,3425.8,0.29252]
[1735540903121,0.4562,3426.0,3425.5,5.97697422]
[1735540903322,0.4562,3426.0,3425.9,0.29252]
[1735540903727,3.2078,3426.3,3426.2,0.29249]
[1735540906322,0.4443,3426.5,3426.3,0.29247]
[1735540906522,0.4443,3426.5,3426.0,3.2078]
[1735540906720,0.4443,3426.5,3426.4,0.29247]
[1735540906921,3.2078,3426.8,3426.6,0.29246]
[1735540907122,3.6387,3426.8,3426.6,0.29246]
[1735540907527,3.6387,3426.8,3426.7,0.29245]
[1735540908029,3.6387,3426.8,3426.1,2.74447422]
[1735540908225,3.6387,3426.8,3426.2,0.29249]
[1735540908429,3.6387,3426.8,3426.6,0.29246]
[1735540909333,3.6387,3426.8,3426.1,0.4175]
[1735540909522,3.6387,3426.8,3426.7,0.29245]
[1735540910229,3.6387,3426.8,3426.6,0.29245]
[1735540910423,3.6387,3426.8,3426.1,0.4175]
[1735540910728,0.29248,3426.4,3426.1,0.2925]
[1735540910925,0.8538,3426.3,3426.1,0.2925]
[1735540911429,0.8538,3426.3,3426.0,3.5003]
[1735540911629,0.2925,3426.2,3426.0,3.2078]
[1735540911828,0.4219,3426.1,3426.0,3.2078]
[1735540912531,0.4219,3426.1,3425.8,0.29252]
[1735540913226,0.4219,3426.1,3425.7,0.4536]
[1735540913422,0.4219,3426.1,3425.7,0.74613]
[1735540915330,2.74887422,3426.1,3425.2,3.2078]
[1735540915535,0.29254,3425.7,3425.2,3.50038]
[1735540915729,0.8778,3425.6,3425.2,3.2078]
[1735540915933,0.8778,3425.6,3425.2,3.50037]
[1735540916131,0.8778,3425.6,3425.2,3.2078]
[1735540917032,0.8778,3425.6,3425.2,3.50038]
[1735540917637,0.8778,3425.6,3425.3,0.29256]
[1735540919139,0.8778,3425.6,3425.2,3.50037]
[1735540919337,0.8778,3425.6,3425.3,0.29256]
[1735540919539,0.8778,3425.6,3425.2,3.2078]
[1735540919540,0.4434,3425.5,3425.2,3.2078]
[1735540919941,0.4434,3425.5,3425.2,3.50037]
[1735540920234,0.4434,3425.5,3424.8,3.2078]
[1735540920538,0.4434,3425.5,3424.9,0.2926]
[1735540920539,0.29256,3425.4,3424.9,0.2926]
[1735540920940,0.29257,3425.3,3424.8,3.50041]
[1735540921336,2.77037422,3425.5,3424.8,3.2078]
[1735540921537,0.29256,3425.4,3424.9,0.2926]
[1735540921836,3.2078,3425.6,3425.5,0.29255]
[1735540922735,3.2078,3425.6,3424.8,3.2078]
[1735540922943,0.29256,3425.5,3425.0,0.29259]
[1735540923239,3.50035,3425.6,3425.2,0.29258]
[1735540923446,3.50035,3425.6,3424.8,3.2078]
[1735540923447,3.2078,3425.6,3425.4,0.29256]
[1735540923649,3.42485575,3425.8,3425.2,3.2078]
[1735540923841,3.42485575,3425.8,3425.6,0.29254]
[1735540924145,3.42485575,3425.8,3425.3,0.8554]
[1735540924146,3.86378702,3425.5,3425.4,0.29256]
[1735540925754,3.86378702,3425.5,3425.3,3.18237422]
[1735540925755,0.4178,3425.9,3425.3,3.18237422]
[1735540925952,0.4178,3425.9,3425.7,0.29253]
[1735540927055,3.84265575,3425.9,3425.6,3.2078]
[1735540927361,3.84265575,3425.9,3425.7,0.29253]
[1735540927651,3.42485575,3425.9,3425.8,0.29253]
[1735540928953,3.42485575,3425.9,3425.8,1.47453]
[1735540929356,3.42485575,3426.0,3425.8,1.182]
[1735540929550,3.42485575,3426.0,3425.9,2.61949422]
[1735540929746,3.42485575,3426.0,3425.9,3.07029422]
[1735540930645,3.42485575,3426.3,3426.2,0.29249]
[1735540932548,3.42485575,3426.3,3426.1,3.13028531]
[1735540933145,3.42485575,3426.3,3426.2,0.29249]
[1735540937154,5.01702966,3426.4,3426.2,0.29249]
[1735540937749,5.01702966,3426.4,3426.1,3.13028531]
[1735540938257,0.29248,3426.3,3426.1,3.13028531]
[1735540938558,5.01702966,3426.4,3426.1,3.13028531]
[1735540938559,0.4264,3426.2,3426.1,3.13028531]
[1735540939451,12.11131714,3426.2,3426.1,3.13028531]
[1735540939653,12.11131714,3426.2,3426.1,3.42278531]
[1735540940460,6.39031126,3426.2,3426.1,3.42278531]
[1735540940757,6.39031126,3426.2,3426.1,0.2925]
[1735540941353,5.45893851,3426.2,3426.1,0.2925]
[1735540942354,5.45893851,3426.2,3425.9,3.2078]
[1735540942355,5.02011689,3426.2,3425.9,3.2078]
[1735540943262,5.02011689,3426.2,3426.0,0.29251]
[1735540943465,0.4163,3426.1,3426.0,0.29251]
[1735540943759,5.44883851,3426.1,3426.0,0.29251]
[1735540945061,5.44883851,3426.1,3425.9,3.50031]
[1735540945257,0.4403,3426.0,3425.9,3.50031]
[1735540946161,0.87912162,3426.0,3425.9,3.50031]
[1735540947260,0.43882162,3426.0,3425.9,3.50031]
[1735540950264,4.59371689,3426.1,3425.9,3.2078]
[1735540950458,4.59371689,3426.1,3426.0,0.29251]
[1735540955662,4.59371689,3426.1,3426.0,1.17021]
[1735540955863,4.59371689,3426.1,3426.0,1.62341]
[1735540956562,2.41741689,3426.1,3426.0,1.62341]
[1735540956860,1.51758742,3426.1,3426.0,6.62341]
[1735540957062,0.63822947,3426.1,3426.0,6.62341]
[1735540957261,2.29708926,3426.2,3426.1,0.2925]
[1735540957560,1.68778926,3426.2,3426.1,3.80147422]
[1735540957761,0.39898926,3426.2,3426.1,8.80147422]
[1735540957961,3.19862324,3426.3,3426.2,0.29249]
[1735540958863,0.4366,3426.9,3426.8,0.29244]
[1735540959168,0.4366,3426.9,3426.8,3.50024]
[1735540963568,5.72100588,3427.6,3426.8,3.2078]
[1735540963768,0.4682,3427.5,3427.1,0.29241]
[1735540964063,0.4682,3427.5,3427.0,2.32697422]
[1735540964265,0.4682,3427.5,3427.4,0.29239]
[1735540972168,0.5165,3427.9,3427.8,0.29235]
[1735540972470,0.5165,3427.9,3427.8,2.61932422]
[1735540987375,0.5165,3427.9,3427.8,0.29235]
[1735540993277,0.5165,3427.9,3427.8,2.61932422]
[1735540994983,0.5165,3427.9,3427.8,0.29235]
[1735540995586,0.5165,3427.9,3427.8,2.61932422]
[1735541002788,0.5165,3427.9,3427.8,5.82712422]
[1735541003687,0.5165,3427.9,3427.8,2.61932422]
[1735541003994,5.50295046,3428.2,3428.1,0.29233]
[1735541005790,5.9415092,3428.2,3428.1,0.29233]
[1735541007996,1.37035874,3428.2,3428.1,0.29233]
[1735541009099,0.9318,3428.2,3428.1,0.29233]
[1735541010302,6.84504738,3428.2,3428.1,1.31558075]
[1735541013007,12.56605326,3428.2,3428.1,1.31558075]
[1735541014104,6.84504738,3428.2,3428.1,1.31558075]
[1735541015608,12.56605326,3428.2,3428.1,1.31558075]
[1735541016813,6.84504738,3428.2,3428.1,1.31558075]
[1735541025114,12.56605326,3428.2,3428.1,1.31558075]
[1735541026616,12.56605326,3428.2,3427.9,3.2078]
[1735541026805,1.02325075,3428.1,3427.9,3.2078]
[1735541027010,1.02325075,3428.1,3427.7,0.29236]
[1735541027213,1.02325075,3428.1,3427.7,1.31561075]
[1735541027414,15.77385326,3428.2,3427.7,1.31561075]
[1735541027615,5.91324738,3428.0,3427.8,0.29235]
[1735541028320,5.91324738,3428.0,3427.5,1.02325075]
[1735541028515,1.02325075,3427.9,3427.3,3.2078]
[1735541028715,1.31560075,3427.9,3427.3,4.52344075]
[1735541028915,0.4391,3427.8,3427.3,3.2078]
[1735541029215,0.4391,3427.8,3427.4,0.29239]
[1735541030320,5.74997418,3427.5,3427.4,0.29239]
[1735541030525,5.74997418,3427.5,3427.3,3.2078]
[1735541030820,0.4553,3427.4,3427.3,3.5002]
[1735541031023,0.4553,3427.4,3427.3,3.2078]
[1735541031722,0.2924,3427.3,3426.8,1.31568075]
[1735541031921,1.02325075,3427.2,3426.8,0.29243]
[1735541032215,1.02325075,3427.2,3426.7,4.23105075]
[1735541032417,4.23105075,3426.8,3426.6,6.78840251]
[1735541032614,0.4553,3426.7,3426.6,4.69630251]
[1735541032816,0.4553,3426.7,3426.6,3.98380251]
[1735541033315,0.4553,3426.7,3426.6,4.27626251]
[1735541033717,6.36854738,3426.7,3426.6,0.29246]
[1735541035115,3.44276101,3426.7,3426.6,0.29246]
[1735541036329,3.44276101,3426.7,3426.5,2.32979999]
[1735541036330,3.88506101,3427.0,3426.9,0.29243]
[1735541036625,3.44276101,3427.0,3426.9,0.29243]
[1735541037017,3.44276101,3427.0,3426.9,4.40883]
[1735541037421,0.4152,3427.1,3427.0,0.29242]
[1735541037621,3.44276101,3427.2,3427.1,0.29241]
[1735541038222,3.44276101,3427.2,3426.9,4.1164]
[1735541038422,3.88506101,3427.3,3427.1,0.29241]
[1735541039729,3.88506101,3427.3,3426.9,4.1164]
[1735541039930,3.88506101,3427.3,3427.2,0.29241]
[1735541042836,3.8814485,3427.3,3427.2,2.62220999]
[1735541044229,6.65056101,3427.7,3427.6,0.29237]
[1735541045732,7.08919088,3427.7,3427.6,0.29237]
[1735541046735,3.88139088,3427.7,3427.6,0.29237]
[1735541047141,3.88139088,3427.7,3427.6,1.15577]
[1735541048034,3.44276101,3427.7,3427.6,1.15577]
[1735541049334,3.88436101,3427.9,3427.6,0.8634]
[1735541049541,3.88436101,3427.9,3427.8,0.29235]
[1735541050234,3.88436101,3427.9,3427.7,0.29236]
[1735541050438,0.4416,3427.9,3427.8,0.29235]
[1735541051443,0.88021645,3427.9,3427.8,0.29235]
[1735541054842,0.88021645,3427.9,3427.6,0.4448]
[1735541055043,0.4249,3427.8,3427.6,0.29237]
[1735541055539,3.43953794,3427.7,3427.6,0.29237]
[1735541056735,0.43861645,3427.7,3427.6,0.29237]
[1735541057842,4.59034801,3427.8,3427.7,0.29236]
[1735541058940,5.02896446,3427.8,3427.7,0.29236]
[1735541061541,3.87873851,3427.8,3427.7,0.29236]
[1735541062845,0.43861645,3427.8,3427.7,0.29236]
[1735541063845,5.47056446,3427.9,3427.2,5.53759999]
[1735541064051,5.47056446,3427.9,3427.8,0.29235]
[1735541066141,5.47056446,3427.9,3427.6,3.01372828]
[1735541066549,5.47056446,3427.9,3427.8,0.29235]
[1735541070750,0.88021645,3427.9,3427.8,0.29235]
[1735541071743,0.4416,3427.9,3427.8,0.29235]
[1735541073149,6.41875595,3427.9,3427.8,0.29235]
[1735541077253,6.41875595,3427.9,3427.5,0.4308]
[1735541077450,6.71110595,3427.9,3427.2,3.2078]
[1735541077645,0.29238,3427.6,3427.2,3.2078]
[1735541077851,0.4391,3427.5,3427.3,0.29239]
[1735541078051,0.4402,3427.4,3427.3,0.29239]
[1735541078656,6.19017418,3427.4,3427.3,0.29239]
[1735541080058,6.41735595,3427.4,3427.2,3.12988165]
[1735541080251,0.4372,3427.3,3427.2,0.29241]
[1735541080853,0.4372,3427.3,3426.9,0.433]
[1735541081061,0.4372,3427.3,3426.6,3.2078]
[1735541081255,0.7296,3427.3,3426.8,0.29244]
[1735541081455,0.7296,3427.3,3426.6,3.2078]
[1735541081655,4.59663611,3427.0,3426.8,0.29244]
[1735541081855,0.4241,3426.9,3426.8,0.29244]
[1735541082057,0.867,3426.9,3426.8,0.29244]
[1735541082960,1.30561645,3426.9,3426.8,0.29244]
[1735541084357,1.30561645,3426.9,3426.6,3.2078]
[1735541084358,6.8393883,3426.9,3426.6,3.2078]
[1735541084562,0.4223,3426.8,3426.7,0.29244]
[1735541084959,0.4223,3426.8,3426.7,0.71174]
[1735541085456,0.4223,3426.8,3426.6,3.2078]
[1735541085657,5.45575633,3426.8,3426.6,3.2078]
[1735541085854,15.99335632,3426.8,3425.6,3.2078]
[1735541086064,3.2078,3426.4,3425.8,0.29252]
[1735541086256,0.45,3426.3,3425.7,2.32979999]
[1735541086456,0.45,3426.3,3426.2,0.29249]
[1735541088167,4.7730674,3426.3,3426.2,0.29249]
[1735541088467,4.7730674,3426.3,3426.1,0.2925]
[1735541088764,0.4557,3426.2,3426.1,0.2925]
[1735541089460,3.89836169,3426.2,3426.1,0.2925]
[1735541090567,3.44266169,3426.2,3426.1,0.2925]
[1735541090976,2.29300271,3426.3,3426.2,0.29249]
[1735541091275,2.29300271,3426.3,3426.2,2.62228999]
[1735541091776,2.29300271,3426.3,3426.2,0.29249]
[1735541092077,5.74579514,3426.9,3426.8,0.29244]
[1735541092078,2.29300271,3426.9,3426.8,0.29244]
[1735541093877,2.29300271,3426.9,3426.8,0.71834]
[1735541094768,6.65046169,3427.0,3426.9,0.29243]
[1735541097174,6.65046169,3427.0,3426.8,0.4259]
[1735541097377,6.65046169,3427.0,3426.8,0.71834]
[1735541097576,6.65046169,3427.0,3426.5,0.29247]
[1735541097577,6.94288169,3427.0,3426.5,0.29247]
[1735541098581,2.29238275,3426.7,3426.5,0.29247]
[1735541098879,0.4242,3426.6,3426.5,0.29247]
[1735541099080,0.8679,3426.6,3426.5,0.29247]
[1735541099275,0.8679,3426.6,3426.4,3.50027]
[1735541099580,0.4254,3426.5,3426.4,3.50027]
[1735541100276,0.4254,3426.5,3425.9,4.3858]
[1735541100482,0.4254,3426.5,3426.1,0.2925]
[1735541100681,0.4254,3426.5,3426.3,0.29248]
[1735541100977,0.4254,3426.5,3426.1,0.2925]
[1735541101173,2.29238275,3426.3,3426.1,0.7152]
[1735541101379,2.29238275,3426.3,3426.2,0.29249]
[1735541101977,2.29238275,3426.3,3426.2,0.71259]
[1735541102483,2.71778275,3426.5,3426.4,0.29247]
[1735541103774,2.29238275,3426.5,3426.4,0.29247]
[1735541104878,2.29238275,3426.5,3426.4,3.50027]
[1735541105283,1.71444079,3426.5,3426.4,3.50027]
[1735541105487,0.31814079,3426.6,3426.5,0.29247]
[1735541105782,0.31814079,3426.6,3426.5,2.62226999]
[1735541106986,3.2078,3427.4,3427.2,0.2924]
[1735541107775,3.2078,3427.4,3427.1,0.29241]
[1735541108090,0.2924,3427.3,3426.8,4.3858]
[1735541108688,3.2078,3427.4,3426.8,4.3858]
[1735541108887,3.2078,3427.4,3426.9,0.29243]
[1735541109284,3.2078,3427.4,3427.0,0.29242]
[1735541109588,3.44266169,3427.2,3427.0,0.29242]
[1735541110385,3.44266169,3427.2,3426.8,4.3858]
[1735541110386,3.44266169,3427.2,3427.1,0.29241]
[1735541111991,3.2078,3427.4,3426.9,3.21779999]
[1735541112185,3.2078,3427.4,3427.1,0.29241]
[1735541112690,3.2078,3427.4,3426.9,2.32979999]
[1735541113396,3.2078,3427.4,3427.3,0.2924]
[1735541116091,6.65046169,3427.4,3427.3,0.2924]
[1735541116497,3.44266169,3427.4,3427.3,0.2924]
[1735541116800,3.44266169,3427.4,3427.3,0.7412]
[1735541117395,3.44266169,3427.7,3427.6,0.29237]
[1735541118291,3.44266169,3427.7,3427.6,3.50017]
[1735541118502,3.44266169,3427.7,3427.3,0.4488]
[1735541118691,1.3636,3427.6,3427.2,4.3858]
[1735541119400,1.3636,3427.6,3427.5,0.29238]
[1735541119596,1.3636,3427.6,3427.2,4.3858]
[1735541119597,1.3636,3427.6,3426.8,4.3858]
[1735541119790,1.65598,3427.6,3427.0,0.29242]
[1735541119988,3.44266169,3427.4,3426.9,0.29243]
[1735541120199,3.44266169,3427.4,3426.8,4.3858]
[1735541120594,6.65046169,3427.4,3426.8,3.2078]
[1735541120801,6.65046169,3427.4,3426.6,0.29245]
[1735541121004,0.2924,3427.3,3426.6,0.29245]
[1735541121201,0.2924,3427.3,3426.4,2.32979999]
[1735541121402,4.59021558,3427.0,3426.7,0.29244]
[1735541121605,0.8832,3426.9,3426.7,0.29244]
[1735541121809,1.3487,3426.9,3426.8,0.29244]
[1735541122101,1.3487,3426.9,3426.7,0.29245]
[1735541122298,1.3487,3426.9,3426.3,3.2078]
[1735541122499,6.37758123,3426.9,3426.3,3.2078]
[1735541122704,6.37758123,3426.9,3426.1,0.18002065]
[1735541122892,0.29247,3426.5,3425.9,2.62230999]
[1735541123592,3.2078,3426.2,3426.0,0.29251]
[1735541123797,0.8811,3426.1,3425.9,2.62230999]
[1735541123993,1.3466,3426.1,3425.7,1.178]
[1735541124200,1.3466,3426.1,3426.0,0.29251]
[1735541125308,0.4543,3426.1,3426.0,0.29251]
[1735541125606,3.88158119,3426.1,3426.0,0.29251]
[1735541125904,3.88158119,3426.1,3426.0,1.65621]
[1735541126501,3.88158119,3426.1,3426.0,0.75011]
[1735541126703,3.88158119,3426.1,3426.0,0.29251]
[1735541127005,3.88158119,3426.1,3425.9,3.2078]
[1735541127006,0.4563,3426.4,3426.1,0.2925]
[1735541127194,0.4563,3426.4,3426.0,0.2925]
[1735541127503,0.4563,3426.4,3426.1,0.2925]
[1735541128096,3.88171365,3426.3,3426.1,0.2925]
[1735541128499,3.88171365,3426.3,3425.9,3.2078]
[1735541129295,3.88171365,3426.3,3426.2,0.29249]
[1735541130606,3.89921554,3426.4,3426.1,2.32979999]
[1735541130806,3.89921554,3426.4,3426.3,0.29248]
[1735541132903,3.89921554,3426.4,3426.2,0.29249]
[1735541133208,3.2078,3426.3,3425.8,2.32979999]
[1735541133409,3.50028,3426.3,3425.8,2.62231999]
[1735541133606,3.50028,3426.3,3425.8,0.29252]
[1735541134105,3.2078,3426.3,3425.5,2.32979999]
[1735541134306,3.2078,3426.3,3425.9,0.29252]
[1735541134509,3.2078,3426.3,3426.0,0.29251]
[1735541134905,3.44291554,3426.1,3425.9,0.29251]
[1735541135111,0.4484,3426.0,3425.9,0.29251]
[1735541135311,0.9072,3426.0,3425.9,0.29251]
[1735541135909,0.9072,3426.0,3425.8,2.32979999]
[1735541136112,0.9072,3426.0,3425.8,2.62231999]
[1735541137313,0.9072,3426.0,3425.9,0.29252]
[1735541139113,0.9072,3426.0,3425.8,2.62231999]
[1735541140614,0.9072,3426.0,3425.9,0.29252]
[1735541141116,0.9072,3426.0,3425.8,2.62231999]
[1735541141312,0.9072,3426.0,3425.5,2.32979999]
[1735541141521,0.9072,3426.0,3425.5,0.29255]
[1735541141816,3.2078,3425.9,3425.5,0.29255]
[1735541142318,3.2078,3425.9,3425.4,3.2078]
[1735541142617,3.2078,3425.9,3425.5,0.29255]
[1735541143513,6.65071554,3425.9,3425.5,0.29255]
[1735541144217,6.65071554,3425.9,3425.4,3.2078]
[1735541144410,11.65071554,3425.9,3425.4,3.2078]
[1735541144811,0.29254,3425.7,3425.2,0.29258]
[1735541145117,0.434,3425.6,3425.2,0.29258]
[1735541145517,0.4438,3425.5,3424.9,5.53759999]
[1735541145713,0.4354,3425.4,3425.2,0.29257]
[1735541145917,0.4354,3425.4,3424.9,5.53759999]
[1735541146214,0.4354,3425.4,3425.3,0.29257]
[1735541148021,5.4354,3425.4,3424.4,3.2078]
[1735541148224,0.29258,3425.2,3424.7,0.29261]
[1735541148416,3.2078,3425.1,3424.4,3.2078]
[1735541148723,0.29262,3424.8,3424.4,3.2078]
[1735541149015,3.2078,3424.6,3423.9,4.5409816]
[1735541149221,3.2078,3424.6,3424.3,0.29265]
[1735541149411,3.2078,3424.6,3424.4,0.29264]
[1735541149616,3.2078,3424.6,3423.8,12.33897785]
[1735541149617,3.2078,3424.6,3423.8,5.53759999]
[1735541150420,1.3355,3424.7,3424.6,0.29263]
[1735541150720,3.44291554,3425.2,3425.1,0.29259]
[1735541150919,3.44291554,3425.2,3425.1,2.62238999]
[1735541151115,4.59021558,3425.2,3425.1,2.62238999]
[1735541151314,4.59021558,3425.2,3425.1,5.83018999]
[1735541152214,0.4589,3425.5,3425.4,0.29256]
[1735541155221,0.4589,3425.5,3424.9,0.7315]
[1735541155222,3.6667,3425.5,3424.8,2.32979999]
[1735541155415,0.4511,3425.4,3425.2,0.29257]
[1735541155612,0.4511,3425.4,3424.7,3.2078]
[1735541155815,0.4653,3425.3,3425.1,0.29258]
[1735541156628,0.4653,3425.3,3424.7,5.53759999]
[1735541156834,0.75787,3425.3,3424.8,0.29261]
[1735541157125,3.2078,3424.9,3424.8,0.29261]
[1735541157729,3.2078,3424.9,3424.4,2.32979999]
[1735541157924,0.4339,3424.8,3424.6,0.29262]
[1735541158125,0.4314,3424.7,3424.1,2.32979999]
[1735541158333,0.4314,3424.7,3424.6,0.29263]
[1735541158513,0.4314,3424.7,3424.1,2.32979999]
[1735541158718,0.4314,3424.7,3424.6,0.29263]
[1735541158917,0.4314,3424.7,3424.1,2.32979999]
[1735541159118,0.4314,3424.7,3423.9,1.6299]
[1735541159321,0.4407,3424.6,3424.4,0.29264]
[1735541159519,0.4407,3424.6,3424.0,0.29268]
[1735541159726,0.4407,3424.6,3424.4,0.29264]
[1735541159934,0.4407,3424.6,3424.5,0.29264]
[1735541161217,0.4314,3424.7,3424.6,0.29263]
[1735541161923,3.2078,3424.9,3424.6,0.29263]
[1735541161924,6.63888735,3424.9,3424.6,2.32979999]
[1735541162122,6.63888735,3424.9,3424.8,0.29261]
[1735541162527,3.2078,3424.9,3424.8,0.29261]
[1735541163525,0.4311,3425.1,3424.6,2.32979999]
[1735541163727,3.6287,3425.3,3425.2,0.29258]
[1735541163926,3.2078,3425.3,3425.2,2.62237999]
[1735541165133,3.2078,3425.3,3425.2,0.29258]
[1735541166230,3.2078,3425.3,3425.0,0.29259]
[1735541166427,3.2078,3425.3,3424.5,5.97699999]
[1735541166728,3.50037,3425.3,3424.8,0.29261]
[1735541166934,3.2078,3424.9,3424.6,0.29262]
[1735541167132,3.2078,3424.9,3424.2,2.79529999]
[1735541167429,0.4309,3424.8,3424.2,2.79529999]
[1735541168229,0.4309,3424.8,3424.6,0.29263]
[1735541168421,0.4309,3424.8,3424.2,2.32979999]
[1735541168828,0.4309,3424.8,3424.6,0.29263]
[1735541169136,0.4309,3424.8,3424.6,0.29262]
[1735541169320,0.4309,3424.8,3424.2,2.32979999]
[1735541169633,0.4309,3424.8,3424.3,0.29265]
[1735541169828,0.4309,3424.8,3424.6,0.29262]
[1735541170019,0.4309,3424.8,3424.2,2.32979999]
[1735541170222,0.4309,3424.8,3424.7,0.29262]
[1735541170624,0.4309,3424.8,3424.6,0.29263]
[1735541170820,0.4309,3424.8,3424.7,0.29262]
[1735541178026,6.63888735,3424.9,3424.8,0.29261]
[1735541178224,3.43108735,3424.9,3424.8,2.62240999]
[1735541179436,0.4388,3425.2,3425.1,0.29259]
[1735541180136,3.2078,3425.3,3425.2,0.29258]
[1735541180530,3.87188735,3425.4,3425.1,2.32979999]
[1735541180531,3.43108735,3425.4,3425.1,2.32979999]
[1735541180734,3.43108735,3425.4,3425.3,0.29257]
[1735541180936,3.43108735,3425.5,3425.4,0.29256]
[1735541182336,3.2078,3425.7,3425.6,0.29254]
[1735541183433,6.63888735,3425.7,3425.6,0.29254]
[1735541184332,7.07779468,3425.7,3425.6,0.29254]
[1735541184938,7.37033468,3425.7,3425.2,0.29257]
[1735541185335,7.07779468,3425.7,3425.3,0.29256]
[1735541185538,7.07779468,3425.7,3425.4,0.29256]
[1735541185838,3.43108735,3425.3,3424.8,2.32979999]
[1735541186139,3.43108735,3425.3,3425.2,0.29258]
[1735541186535,3.43108735,3425.3,3424.8,2.32979999]
[1735541186736,0.439,3425.2,3425.1,0.29259]
[1735541187638,0.439,3425.2,3424.9,0.2926]
[1735541187839,0.439,3425.2,3424.7,0.29261]
[1735541188044,3.2078,3424.9,3424.2,3.94089999]
[1735541188338,3.2078,3424.9,3424.2,2.76389999]
[1735541188541,3.2078,3424.9,3424.7,0.29262]
[1735541189034,3.2078,3424.9,3424.8,0.29261]